bitfinex/quotes_BTCUSD_20250812
["timestamp","ask_amount","ask_price","bid_price","bid_amount"]
[1755021763505,1e-08,119390.0,119380.0,3.62541551]
[1755021763824,1e-08,119390.0,119380.0,3.62641551]
[1755021764306,1e-08,119390.0,119380.0,3.62841551]
[1755021764540,1e-08,119390.0,119380.0,3.62641551]
[1755021765761,1e-08,119390.0,119380.0,3.62841551]
[1755021766978,0.0004,119450.0,119440.0,0.51744809]
[1755021767183,0.00253,119450.0,119440.0,4.48023604]
[1755021767389,0.00267682,119450.0,119440.0,4.48342604]
[1755021767592,0.00267682,119450.0,119440.0,3.67433485]
[1755021767803,0.00267682,119450.0,119440.0,3.69626585]
[1755021768173,0.00267682,119450.0,119440.0,3.61055385]
[1755021768376,0.00267682,119450.0,119440.0,3.62311437]
[1755021768559,0.00267682,119450.0,119440.0,3.61297737]
[1755021768935,0.00267682,119450.0,119440.0,4.17824056]
[1755021770310,0.00267682,119450.0,119440.0,3.61297737]
[1755021770982,0.00054682,119450.0,119440.0,4.18143056]
[1755021771940,0.00054682,119450.0,119440.0,3.98102956]
[1755021772135,0.00054682,119450.0,119440.0,4.00662153]
[1755021772381,0.00267682,119450.0,119440.0,4.00662153]
[1755021773734,0.00267682,119450.0,119440.0,1.47084934]
[1755021774001,0.00572682,119450.0,119440.0,1.18614015]
[1755021774147,0.00572682,119450.0,119440.0,1.75140334]
[1755021776209,0.00267682,119450.0,119440.0,1.75348334]
[1755021777258,0.00054682,119450.0,119440.0,2.32193653]
[1755021780879,0.00054682,119450.0,119440.0,1.06073015]
[1755021781101,0.00255682,119450.0,119440.0,2.31866653]
[1755021781736,0.00562682,119450.0,119440.0,0.90350615]
[1755021781944,0.00562682,119450.0,119440.0,1.75415534]
[1755021782153,0.00255682,119450.0,119440.0,2.32139853]
[1755021782359,0.00054682,119450.0,119440.0,2.32432853]
[1755021783204,0.00054682,119450.0,119440.0,1.19380215]
[1755021783415,0.00054682,119450.0,119440.0,2.52432853]
[1755021786198,0.00347,119470.0,119460.0,0.31742005]
[1755021786406,0.00596922,119470.0,119460.0,1.16465065]
[1755021788153,0.00596922,119470.0,119460.0,1.17061965]
[1755021790170,0.00596922,119470.0,119460.0,1.17073965]
[1755021790754,0.00088922,119470.0,119460.0,2.49123465]
[1755021791137,0.00088922,119470.0,119460.0,2.69416465]
[1755021791513,0.00088922,119470.0,119460.0,3.25942784]
[1755021792155,0.00088922,119470.0,119460.0,3.26042784]
[1755021792346,0.00088922,119470.0,119460.0,3.30287686]
[1755021793268,0.00088922,119470.0,119460.0,3.30187686]
[1755021793673,0.00088922,119470.0,119460.0,3.30287686]
[1755021794098,0.0004,119480.0,119470.0,0.36740604]
[1755021794328,0.0004,119480.0,119470.0,6.01984594]
[1755021794958,0.0004,119480.0,119470.0,5.26964294]
[1755021795548,0.0004,119480.0,119470.0,5.27064294]
[1755021796078,0.0004,119480.0,119470.0,5.26964294]
[1755021796538,0.0004,119480.0,119470.0,5.27164294]
[1755021796852,0.0004,119480.0,119470.0,5.31409196]
[1755021797066,0.0004,119480.0,119470.0,5.31509196]
[1755021797479,0.0004,119490.0,119480.0,0.51739203]
[1755021797707,0.00054668,119490.0,119480.0,6.922142]
[1755021797919,0.00347,119510.0,119500.0,0.51736401]
[1755021798129,0.00548,119510.0,119500.0,1.49727045]
[1755021798339,0.00548,119510.0,119500.0,1.67353245]
[1755021798555,0.00241,119510.0,119500.0,1.67551245]
[1755021798761,0.00241,119510.0,119500.0,1.74399661]
[1755021799578,0.00548,119510.0,119500.0,1.74399661]
[1755021800422,0.00241,119510.0,119500.0,1.74399661]
[1755021800637,0.00241,119510.0,119500.0,1.7691715]
[1755021801427,0.00241,119510.0,119500.0,1.7721015]
[1755021802189,0.0004,119510.0,119500.0,1.7972105]
[1755021802563,0.0004,119510.0,119500.0,1.23194731]
[1755021802798,0.0004,119510.0,119500.0,1.7972105]
[1755021803216,0.00548,119510.0,119500.0,1.6611805]
[1755021803428,0.00548,119510.0,119500.0,1.7600965]
[1755021803596,0.0004,119510.0,119500.0,1.7620765]
[1755021803861,0.0004,119510.0,119500.0,1.7650065]
[1755021804979,0.0004,119510.0,119500.0,1.19974331]
[1755021805193,0.00548,119510.0,119500.0,1.6290165]
[1755021805398,0.00548,119510.0,119500.0,1.7600965]
[1755021805627,0.00548,119510.0,119500.0,1.19483331]
[1755021805796,0.00548,119510.0,119500.0,1.7600965]
[1755021806433,0.00548,119510.0,119500.0,1.19483331]
[1755021806643,0.00548,119510.0,119500.0,1.7600965]
[1755021810091,0.00548,119510.0,119500.0,1.7620865]
[1755021810310,0.00241,119510.0,119500.0,1.7620865]
[1755021810759,0.00241,119510.0,119500.0,1.7652965]
[1755021811014,0.00241,119510.0,119500.0,1.20003331]
[1755021811242,0.00241,119510.0,119500.0,1.7652965]
[1755021812141,0.0004,119510.0,119500.0,1.7652965]
[1755021812857,0.0004,119510.0,119500.0,2.33055969]
[1755021813040,0.0004,119510.0,119500.0,1.7652965]
[1755021813505,0.0004,119510.0,119500.0,1.06995331]
[1755021813741,0.0004,119510.0,119500.0,1.7666565]
[1755021813952,0.0004,119510.0,119500.0,1.7656565]
[1755021814166,0.0004,119510.0,119500.0,1.7666565]
[1755021817148,0.0004,119510.0,119500.0,1.6352165]
[1755021817559,0.0004,119510.0,119500.0,1.7665765]
[1755021817987,0.0004,119510.0,119500.0,1.7665365]
[1755021818233,0.0004,119510.0,119500.0,1.20127331]
[1755021818447,0.0004,119510.0,119500.0,1.7665365]
[1755021818667,0.00243,119510.0,119500.0,1.6300165]
[1755021818880,0.00558,119510.0,119500.0,1.7613365]
[1755021819703,0.00558,119510.0,119500.0,1.7633265]
[1755021821468,0.00243,119510.0,119500.0,1.7633265]
[1755021821885,0.00243,119510.0,119500.0,1.6320065]
[1755021822095,0.00558,119510.0,119500.0,1.7632865]
[1755021822302,0.00243,119510.0,119500.0,1.7632865]
[1755021824052,0.00243,119510.0,119500.0,1.7632465]
[1755021824454,0.00243,119510.0,119500.0,1.6320065]
[1755021824675,0.00243,119510.0,119500.0,1.7631665]
[1755021825303,0.00243,119510.0,119500.0,1.7631265]
[1755021825512,0.00558,119510.0,119500.0,1.7631665]
[1755021825722,0.00558,119510.0,119500.0,1.19790331]
[1755021825992,0.00558,119510.0,119500.0,1.7631665]
[1755021826231,0.00243,119510.0,119500.0,1.7631665]
[1755021827081,0.0004,119510.0,119500.0,1.7663765]
[1755021827888,0.00243,119510.0,119500.0,1.7663765]
[1755021829337,0.00558,119510.0,119500.0,1.2859185]
[1755021829583,0.00558,119510.0,119500.0,1.6586435]
[1755021829786,0.00558,119510.0,119500.0,1.09338031]
[1755021830000,0.00558,119510.0,119500.0,1.6586435]
[1755021832556,0.00558,119510.0,119500.0,1.6606335]
[1755021832779,0.00243,119510.0,119500.0,1.6606335]
[1755021833464,0.00243,119510.0,119500.0,1.5295135]
[1755021833672,0.00558,119510.0,119500.0,1.5749825]
[1755021834593,0.00558,119510.0,119500.0,0.51985531]
[1755021834843,0.00558,119510.0,119500.0,0.5532113]
[1755021834844,0.17356383,119510.0,119500.0,0.5532113]
[1755021835058,0.7627932,119510.0,119500.0,0.001]
[1755021835271,0.7627932,119510.0,119500.0,0.132]
[1755021835632,0.7627932,119510.0,119480.0,0.20072]
[1755021835633,0.16737802,119490.0,119480.0,0.20072]
[1755021835840,0.73530503,119490.0,119480.0,0.20072]
[1755021836035,0.73467121,119490.0,119480.0,0.33168]
[1755021836356,0.17255802,119490.0,119480.0,0.33168]
[1755021836589,0.17255802,119490.0,119480.0,0.49907203]
[1755021836812,0.00518,119490.0,119480.0,1.06433522]
[1755021837027,0.00203,119490.0,119480.0,1.14904847]
[1755021837257,0.00203,119490.0,119480.0,1.4796089]
[1755021837485,0.00355,119510.0,119490.0,0.31737802]
[1755021837940,0.0004,119510.0,119500.0,1.15159045]
[1755021837943,0.0004,119510.0,119500.0,1.15577455]
[1755021838206,0.0004,119510.0,119500.0,1.41981745]
[1755021838494,0.0004,119510.0,119500.0,1.45795877]
[1755021838683,0.0004,119510.0,119500.0,1.46885548]
[1755021839575,0.0004,119510.0,119500.0,1.11856658]
[1755021839800,0.0004,119510.0,119500.0,1.6941175]
[1755021840440,0.0004,119510.0,119500.0,1.0120286]
[1755021840654,0.00547,119510.0,119500.0,0.8721916]
[1755021842708,0.00251,119510.0,119500.0,0.8721916]
[1755021842919,0.0004,119510.0,119500.0,1.4264205]
[1755021843363,0.0004,119510.0,119500.0,0.8753716]
[1755021844006,0.0004,119510.0,119500.0,1.4264205]
[1755021844213,0.0004,119510.0,119500.0,0.8502606]
[1755021844421,0.0004,119510.0,119500.0,1.4013095]
[1755021844630,0.0004,119510.0,119500.0,0.8502606]
[1755021844874,0.0004,119510.0,119500.0,0.8512606]
[1755021845082,0.0004,119510.0,119500.0,1.4023095]
[1755021845693,0.0004,119510.0,119500.0,0.8512606]
[1755021845898,0.0004,119510.0,119500.0,1.4023095]
[1755021846779,0.0004,119510.0,119500.0,0.8512606]
[1755021846982,0.0004,119510.0,119500.0,1.4023095]
[1755021848752,0.00251,119510.0,119500.0,1.3991295]
[1755021848966,0.00547,119510.0,119500.0,0.8460906]
[1755021849478,0.00547,119510.0,119500.0,0.8481606]
[1755021849692,0.00251,119510.0,119500.0,0.8481606]
[1755021849865,0.00547,119510.0,119500.0,0.48998858]
[1755021850097,0.00610382,119510.0,119500.0,0.62214858]
[1755021850945,0.00610382,119510.0,119500.0,0.48998858]
[1755021851122,0.00610382,119510.0,119500.0,0.62214858]
[1755021851540,0.00610382,119510.0,119500.0,0.48998858]
[1755021851746,0.00610382,119510.0,119500.0,0.62202858]
[1755021853464,0.00610382,119510.0,119500.0,0.48998858]
[1755021853673,0.00610382,119510.0,119500.0,0.53922533]
[1755021854074,0.17345383,119510.0,119500.0,0.50108401]
[1755021854294,0.17282001,119510.0,119500.0,0.50108401]
[1755021854494,0.17282001,119510.0,119500.0,0.3338]
[1755021855153,0.17282001,119510.0,119500.0,0.50116401]
[1755021855310,0.17282001,119510.0,119500.0,0.50016401]
[1755021855512,0.17282001,119510.0,119500.0,0.58191821]
[1755021855936,0.17282001,119510.0,119500.0,0.4145542]
[1755021856578,0.17282001,119510.0,119500.0,0.4155542]
[1755021856792,0.17282001,119510.0,119500.0,0.20176]
[1755021856954,0.17282001,119510.0,119500.0,0.33376]
[1755021857354,0.72386891,119510.0,119500.0,0.20176]
[1755021857586,0.72386891,119510.0,119500.0,0.33384]
[1755021857842,0.72386891,119510.0,119500.0,0.33284]
[1755021858102,0.17282001,119510.0,119500.0,0.33284]
[1755021859194,0.72386891,119510.0,119500.0,0.33284]
[1755021859404,0.80635334,119510.0,119500.0,0.33284]
[1755021859815,0.80635334,119510.0,119500.0,0.3328]
[1755021860466,0.25530444,119510.0,119500.0,0.3328]
[1755021860732,0.73760402,119510.0,119500.0,0.3328]
[1755021860931,0.16739203,119480.0,119470.0,0.15]
[1755021861141,0.17309585,119480.0,119470.0,0.28218668]
[1755021861366,0.17246203,119480.0,119470.0,0.44959272]
[1755021861578,0.17246203,119480.0,119470.0,0.5145191]
[1755021861824,0.16950203,119480.0,119470.0,0.5145191]
[1755021862225,0.16950203,119480.0,119470.0,0.34711306]
[1755021863204,0.16950203,119480.0,119470.0,0.5145191]
[1755021863409,0.16950203,119480.0,119470.0,0.34711306]
[1755021864077,0.17246203,119480.0,119470.0,0.34711306]
[1755021864298,0.17871623,119500.0,119480.0,0.16739203]
[1755021864509,0.16736401,119500.0,119490.0,1.01643203]
[1755021864727,0.16947401,119500.0,119490.0,0.28427]
[1755021864945,0.16737802,119490.0,119470.0,0.32692302]
[1755021865164,0.16737802,119490.0,119470.0,0.31755272]
[1755021865165,0.17246203,119480.0,119470.0,0.31755272]
[1755021865390,0.17573221,119500.0,119480.0,0.16739203]
[1755021865626,0.17573221,119500.0,119490.0,0.30176802]
[1755021865831,0.17907751,119510.0,119490.0,0.30494802]
[1755021866045,0.17907751,119510.0,119500.0,0.16736401]
[1755021866282,0.17822751,119510.0,119500.0,0.16943401]
[1755021866460,0.0004,119510.0,119500.0,0.17261401]
[1755021866725,0.00103382,119510.0,119500.0,0.17261401]
[1755021867084,0.0004,119510.0,119500.0,0.17261401]
[1755021867268,0.0024,119510.0,119500.0,0.72398308]
[1755021867462,0.0024,119510.0,119500.0,0.17261401]
[1755021867666,0.17338383,119510.0,119500.0,0.17261401]
[1755021867856,0.17275001,119510.0,119500.0,0.17261401]
[1755021868052,0.16775001,119510.0,119500.0,0.17261401]
[1755021868243,0.16938383,119510.0,119500.0,0.17261401]
[1755021868442,0.16875001,119510.0,119500.0,0.25509844]
[1755021868648,0.16875001,119510.0,119500.0,0.38725844]
[1755021871447,0.16875001,119510.0,119500.0,0.21989443]
[1755021871650,0.17087001,119510.0,119500.0,0.38407844]
[1755021871963,0.17087001,119510.0,119500.0,0.21671443]
[1755021872504,0.17087001,119510.0,119500.0,0.38407844]
[1755021873131,0.17087001,119510.0,119500.0,0.30159401]
[1755021873346,0.17087001,119510.0,119500.0,0.13423]
[1755021873773,0.17087001,119510.0,119500.0,0.30159401]
[1755021874182,0.17087001,119510.0,119500.0,0.13423]
[1755021875743,0.17087001,119510.0,119500.0,0.1372]
[1755021875948,0.16875001,119510.0,119500.0,0.37010181]
[1755021876683,0.16875001,119510.0,119500.0,0.2027378]
[1755021878489,0.17087001,119510.0,119500.0,0.2027378]
[1755021879532,0.17087001,119510.0,119500.0,0.1997678]
[1755021880895,0.17087001,119510.0,119500.0,0.2027378]
[1755021882808,0.17087001,119510.0,119500.0,0.1372]
[1755021883717,0.17087001,119510.0,119500.0,0.30456401]
[1755021883898,0.16875001,119510.0,119500.0,0.30456401]
[1755021884098,0.0014,119510.0,119500.0,0.30456401]
[1755021884272,0.16875001,119510.0,119500.0,0.30456401]
[1755021884493,0.16875001,119510.0,119500.0,0.38704844]
[1755021884814,0.16875001,119510.0,119500.0,0.95152461]
[1755021885406,0.16875001,119510.0,119500.0,0.7841606]
[1755021885922,0.16875001,119510.0,119500.0,0.21968443]
[1755021886652,0.17087001,119510.0,119500.0,0.21968443]
[1755021887108,0.17087001,119510.0,119500.0,0.21635443]
[1755021892120,0.17087001,119510.0,119500.0,0.38371844]
[1755021892312,0.17087001,119510.0,119500.0,0.21932443]
[1755021893208,0.16875001,119510.0,119500.0,0.21932443]
[1755021894472,0.17087001,119510.0,119500.0,0.21932443]
[1755021894700,0.17087001,119510.0,119500.0,0.30420401]
[1755021895145,0.16875001,119510.0,119500.0,0.86868018]
[1755021895363,0.0014,119510.0,119500.0,0.86868018]
[1755021895816,0.16875001,119510.0,119500.0,0.86868018]
[1755021899370,0.0014,119510.0,119500.0,0.86868018]
[1755021899580,0.0014,119510.0,119500.0,0.95116461]
[1755021899733,0.0014,119510.0,119500.0,0.86868018]
[1755021900144,0.0014,119510.0,119500.0,0.30420401]
[1755021900498,0.16875001,119510.0,119500.0,0.86868018]
[1755021900705,0.0014,119510.0,119500.0,0.86868018]
[1755021901553,0.16875001,119510.0,119500.0,0.30420401]
[1755021901818,0.16875001,119510.0,119500.0,0.95091838]
[1755021902474,0.0014,119510.0,119500.0,0.95091838]
[1755021902684,0.0014,119510.0,119500.0,1.03364163]
[1755021902866,0.0014,119510.0,119500.0,1.23364163]
[1755021903339,0.0014,119510.0,119500.0,1.25912283]
[1755021903537,0.0014,119510.0,119500.0,2.94873083]
[1755021904429,0.0014,119510.0,119500.0,2.17652083]
[1755021905487,0.0014,119510.0,119500.0,2.37652083]
[1755021908503,0.0014,119510.0,119500.0,4.37652083]
[1755021909083,0.0014,119510.0,119500.0,4.37752083]
[1755021909713,0.0014,119510.0,119500.0,4.37652083]
[1755021910100,0.0004,119510.0,119500.0,4.37008083]
[1755021910326,0.0004,119510.0,119500.0,4.37211083]
[1755021913248,0.0004,119510.0,119500.0,3.80763466]
[1755021913445,0.0004,119510.0,119500.0,4.37211083]
[1755021914609,0.0004,119510.0,119500.0,3.54347783]
[1755021914823,0.0004,119510.0,119500.0,3.64308483]
[1755021915657,0.0004,119510.0,119500.0,3.64618483]
[1755021920488,1e-08,119510.0,119500.0,4.25311002]
[1755021920696,1e-08,119510.0,119500.0,4.47449858]
[1755021920912,1e-08,119510.0,119500.0,4.45311002]
[1755021921341,1e-08,119510.0,119500.0,4.45211002]
[1755021921768,1e-08,119510.0,119500.0,4.60420942]
[1755021922655,1e-08,119510.0,119500.0,4.62920942]
[1755021922862,1e-08,119510.0,119500.0,4.77920942]
[1755021923064,1e-08,119510.0,119500.0,4.80409942]
[1755021923290,1e-08,119510.0,119500.0,4.65400002]
[1755021923493,1e-08,119520.0,119510.0,1.48875137]
[1755021923710,1e-08,119520.0,119510.0,6.76416374]
[1755021923918,1e-08,119520.0,119510.0,6.76726374]
[1755021924131,1e-08,119520.0,119510.0,6.91728577]
[1755021925194,1e-08,119520.0,119510.0,6.94328577]
[1755021925407,1e-08,119520.0,119510.0,6.94528577]
[1755021925851,1e-08,119520.0,119510.0,6.94428577]
[1755021926030,1e-08,119520.0,119510.0,7.20988577]
[1755021926441,2.28624698,119530.0,119520.0,0.60978503]
[1755021926644,2.28639363,119530.0,119520.0,7.31212882]
[1755021927744,2.28639363,119530.0,119520.0,7.33722982]
[1755021928156,2.28639363,119530.0,119520.0,7.33822982]
[1755021928747,2.28639363,119530.0,119520.0,7.33922982]
[1755021932141,2.28639363,119530.0,119520.0,7.30295982]
[1755021933375,2.28639363,119530.0,119520.0,7.03935982]
[1755021934556,2.28639363,119530.0,119520.0,5.91040748]
[1755021934841,2.28639363,119530.0,119520.0,7.03935982]
[1755021936825,1.78693415,119530.0,119520.0,7.18935982]
[1755021937046,1.62398488,119530.0,119520.0,7.21074838]
[1755021937257,1.62398488,119530.0,119520.0,7.12851018]
[1755021937672,1.17836551,119530.0,119520.0,7.10712162]
[1755021937886,1.03937337,119530.0,119520.0,7.10612162]
[1755021938086,0.76866319,119530.0,119520.0,7.67059779]
[1755021938294,0.59656007,119530.0,119520.0,7.71598635]
[1755021938492,0.44712898,119530.0,119520.0,7.71598635]
[1755021938731,0.44712898,119530.0,119520.0,7.15351018]
[1755021938938,0.44712898,119530.0,119520.0,7.13412162]
[1755021940043,0.06595279,119530.0,119520.0,7.13412162]
[1755021940282,0.06595279,119530.0,119520.0,7.69859779]
[1755021940678,0.06595279,119530.0,119520.0,7.71998635]
[1755021940814,0.06595279,119530.0,119520.0,6.02655784]
[1755021941010,0.06595279,119530.0,119520.0,7.71998635]
[1755021941211,0.06595279,119530.0,119520.0,7.15551018]
[1755021941422,0.06595279,119530.0,119520.0,7.13412162]
[1755021941639,0.06595279,119530.0,119520.0,6.00516928]
[1755021941945,0.06595279,119530.0,119520.0,7.13412162]
[1755021942390,0.06595279,119530.0,119520.0,6.00516928]
[1755021942566,0.06595279,119530.0,119520.0,6.09516928]
[1755021942772,0.06595279,119530.0,119520.0,6.94098162]
[1755021942979,0.06595279,119530.0,119520.0,5.33705262]
[1755021943394,0.06595279,119530.0,119520.0,4.51751462]
[1755021943587,0.06595279,119530.0,119520.0,3.01356228]
[1755021943876,0.07095279,119530.0,119520.0,4.51751462]
[1755021944076,0.07095279,119530.0,119520.0,2.84740228]
[1755021944253,0.07095279,119530.0,119520.0,3.01071226]
[1755021944455,0.07095279,119530.0,119520.0,4.1646646]
[1755021944699,0.07095279,119530.0,119520.0,4.18211362]
[1755021945121,0.06790279,119530.0,119520.0,4.18411362]
[1755021945320,0.06595279,119530.0,119520.0,4.18411362]
[1755021945697,0.06595279,119530.0,119520.0,4.18705362]
[1755021945929,0.06595279,119530.0,119520.0,4.20977551]
[1755021946194,0.06595279,119530.0,119520.0,4.20127551]
[1755021946396,0.06595279,119530.0,119520.0,3.27232317]
[1755021946814,0.06595279,119530.0,119520.0,4.37855362]
[1755021947277,0.06595279,119530.0,119520.0,4.40127551]
[1755021947481,0.06595279,119530.0,119520.0,4.37855362]
[1755021947688,0.06595279,119530.0,119520.0,4.35355362]
[1755021947890,0.06595279,119530.0,119520.0,4.37855362]
[1755021948100,0.06595279,119530.0,119520.0,4.40127551]
[1755021948315,0.06595279,119530.0,119520.0,3.27232317]
[1755021948524,0.06595279,119530.0,119520.0,4.40127551]
[1755021949553,0.06595279,119530.0,119520.0,4.50127551]
[1755021949792,0.05539198,119530.0,119520.0,4.50977551]
[1755021950006,1e-08,119530.0,119520.0,5.07425168]
[1755021950210,0.0004,119550.0,119540.0,0.90975703]
[1755021950411,0.0004,119550.0,119540.0,6.16232028]
[1755021950614,0.0004,119550.0,119540.0,6.72973645]
[1755021951540,0.0004,119550.0,119540.0,7.30393617]
[1755021951711,0.0004,119550.0,119540.0,6.73946]
[1755021951893,0.0004,119550.0,119540.0,6.9401]
[1755021952313,0.0004,119550.0,119540.0,6.37562383]
[1755021952535,0.0004,119550.0,119540.0,6.9401]
[1755021952740,0.0004,119550.0,119540.0,5.96544483]
[1755021953005,0.00235,119550.0,119540.0,6.161193]
[1755021953193,0.0054,119550.0,119540.0,5.59671683]
[1755021953326,0.0054,119550.0,119540.0,6.160193]
[1755021953522,0.0054,119550.0,119540.0,3.727226]
[1755021953723,0.0054,119550.0,119540.0,3.412383]
[1755021954022,0.0054,119550.0,119540.0,2.08537181]
[1755021954211,0.0054,119550.0,119540.0,1.74885881]
[1755021954344,0.0054,119550.0,119540.0,2.31333498]
[1755021954548,0.0054,119550.0,119540.0,1.74885881]
[1755021954771,0.0054,119550.0,119540.0,1.43101281]
[1755021955007,0.0054,119550.0,119540.0,1.84706098]
[1755021955365,0.0054,119550.0,119540.0,1.28258481]
[1755021955584,0.0054,119550.0,119540.0,0.8904608]
[1755021955800,0.0054,119550.0,119540.0,1.19007681]
[1755021956238,0.0054,119550.0,119540.0,1.75455298]
[1755021956884,0.0004,119550.0,119540.0,1.20952583]
[1755021957087,0.0004,119550.0,119540.0,1.949002]
[1755021957516,0.0004,119550.0,119540.0,1.970392]
[1755021957727,0.0004,119550.0,119540.0,1.967452]
[1755021957950,0.0004,119550.0,119540.0,2.53486817]
[1755021958351,0.0004,119550.0,119540.0,1.60391583]
[1755021958473,0.0004,119550.0,119540.0,2.73286817]
[1755021958678,0.0004,119550.0,119540.0,2.73586817]
[1755021958899,0.0004,119550.0,119540.0,2.73486817]
[1755021959094,0.0004,119550.0,119540.0,2.73786817]
[1755021960382,0.0004,119550.0,119540.0,2.170452]
[1755021960582,0.00248,119550.0,119540.0,2.170452]
[1755021960711,0.00554,119550.0,119540.0,2.170452]
[1755021961319,0.00554,119550.0,119540.0,1.827212]
[1755021961522,0.00554,119550.0,119540.0,1.968692]
[1755021961755,0.00554,119550.0,119540.0,1.21176681]
[1755021961959,0.00554,119550.0,119540.0,1.77624298]
[1755021963335,0.00554,119550.0,119540.0,1.21176681]
[1755021963535,0.00554,119550.0,119540.0,1.77624298]
[1755021963945,0.00554,119550.0,119540.0,1.57624298]
[1755021964149,0.00554,119550.0,119540.0,1.63276298]
[1755021964384,0.00554,119550.0,119540.0,1.21176681]
[1755021964582,0.00554,119550.0,119540.0,1.77624298]
[1755021965142,0.00554,119550.0,119540.0,1.20204326]
[1755021965602,0.00554,119550.0,119540.0,1.76651943]
[1755021965773,0.00504786,119550.0,119540.0,1.76651943]
[1755021967331,0.00504786,119550.0,119540.0,1.20204326]
[1755021967478,0.00504786,119550.0,119540.0,1.76651943]
[1755021967884,0.00504786,119550.0,119540.0,1.20204326]
[1755021968309,0.00504786,119550.0,119540.0,1.76651943]
[1755021968513,0.00504786,119550.0,119540.0,1.20204326]
[1755021968718,0.00504786,119550.0,119540.0,1.76651943]
[1755021969558,0.00504786,119550.0,119540.0,1.20204326]
[1755021969756,0.00504786,119550.0,119540.0,1.76651943]
[1755021970343,0.00504786,119550.0,119540.0,1.20204326]
[1755021970484,0.00504786,119550.0,119540.0,1.76651943]
[1755021971148,0.00504786,119550.0,119540.0,1.77627293]
[1755021971897,0.00504786,119550.0,119540.0,1.21179676]
[1755021972091,0.00504786,119550.0,119540.0,1.26548492]
[1755021972333,0.17234187,119550.0,119540.0,1.03204292]
[1755021972556,0.17234187,119550.0,119540.0,1.17560292]
[1755021972931,0.00504786,119550.0,119540.0,1.17560292]
[1755021973090,0.00568168,119550.0,119540.0,1.17560292]
[1755021973295,0.00568168,119550.0,119540.0,0.73036375]
[1755021973548,0.00568168,119550.0,119540.0,1.17260292]
[1755021973743,0.00568168,119550.0,119540.0,1.16960292]
[1755021973953,0.00568168,119550.0,119540.0,1.17060292]
[1755021974161,0.00568168,119550.0,119540.0,1.17260292]
[1755021974372,0.00568168,119550.0,119540.0,0.60812675]
[1755021974577,0.00568168,119550.0,119540.0,1.17060292]
[1755021974781,0.00568168,119550.0,119540.0,1.17160292]
[1755021975365,0.00568168,119550.0,119540.0,0.60612675]
[1755021975585,0.00568168,119550.0,119540.0,1.17060292]
[1755021977836,0.00568168,119550.0,119540.0,1.33791093]
[1755021978147,0.00198786,119550.0,119540.0,2.16145893]
[1755021978339,0.0184493,119560.0,119550.0,0.16729401]
[1755021978508,0.0205293,119560.0,119550.0,3.46186077]
[1755021978703,0.0205293,119560.0,119550.0,2.55915943]
[1755021978911,0.0184493,119560.0,119550.0,2.55915943]
[1755021979310,0.0184493,119560.0,119550.0,3.1236356]
[1755021979895,0.0184493,119560.0,119550.0,2.42053943]
[1755021980093,0.0184493,119560.0,119550.0,2.39254743]
[1755021980310,0.0205293,119560.0,119550.0,1.79207126]
[1755021980506,0.0205293,119560.0,119550.0,2.35654743]
[1755021980730,0.0205293,119560.0,119550.0,1.50904443]
[1755021980895,0.0235893,119560.0,119550.0,1.27275243]
[1755021981100,0.0235893,119560.0,119550.0,1.30518943]
[1755021981521,0.0235893,119560.0,119550.0,1.30618943]
[1755021982176,0.0205293,119560.0,119550.0,0.74381326]
[1755021982365,0.0184493,119560.0,119550.0,1.30828943]
[1755021982595,0.0205293,119560.0,119550.0,1.30828943]
[1755021984298,0.0205293,119560.0,119550.0,1.33338843]
[1755021985333,0.0205293,119560.0,119550.0,0.76891226]
[1755021985510,0.0205293,119560.0,119550.0,1.33338843]
[1755021987049,0.0205293,119560.0,119550.0,0.76891226]
[1755021987355,0.0205293,119560.0,119550.0,1.33338843]
[1755021988108,0.0205293,119560.0,119550.0,0.76891226]
[1755021988318,0.0184493,119560.0,119550.0,0.77184226]
[1755021988571,0.0184493,119560.0,119550.0,1.33631843]
[1755021988772,0.0184493,119560.0,119550.0,1.33338843]
[1755021990712,0.0204093,119560.0,119550.0,1.33338843]
[1755021992378,0.19089932,119560.0,119550.0,0.10882225]
[1755021992555,0.19089932,119560.0,119550.0,0.25166225]
[1755021994738,0.0236193,119560.0,119550.0,0.25166225]
[1755021994940,0.02425312,119560.0,119550.0,0.81613842]
[1755021995145,0.02425312,119560.0,119550.0,0.98343243]
[1755021995345,0.02425312,119560.0,119550.0,0.41895626]
[1755021996060,0.0236193,119560.0,119550.0,0.98343243]
[1755021996534,0.0236193,119560.0,119550.0,0.98552243]
[1755021996735,0.0184493,119560.0,119550.0,2.22270543]
[1755021998301,0.0236193,119560.0,119550.0,1.37689826]
[1755021998513,0.0236193,119560.0,119550.0,1.86025443]
[1755021998794,0.0236193,119560.0,119550.0,1.29577826]
[1755021999237,0.0236193,119560.0,119550.0,1.86025443]
[1755022000528,0.0184493,119560.0,119550.0,1.86025443]
[1755022000979,0.0184493,119560.0,119550.0,1.77817443]
[1755022001955,0.0184493,119560.0,119550.0,1.21369826]
[1755022002178,0.19089932,119560.0,119550.0,0.25178225]
[1755022002617,0.19089932,119560.0,119550.0,0.81625842]
[1755022003544,0.0236193,119560.0,119550.0,0.81625842]
[1755022003750,0.19089932,119560.0,119550.0,0.25178225]
[1755022004370,0.0236193,119560.0,119550.0,0.81625842]
[1755022004575,0.0236193,119560.0,119550.0,0.25178225]
[1755022004762,0.19089932,119560.0,119550.0,0.25178225]
[1755022004914,0.19089932,119560.0,119550.0,0.81625842]
[1755022005541,0.19089932,119560.0,119550.0,0.81617842]
[1755022005971,0.19089932,119560.0,119550.0,0.25170225]
[1755022006183,0.19089932,119560.0,119550.0,0.81617842]
[1755022006959,0.19089932,119560.0,119550.0,0.81826842]
[1755022007078,0.18768932,119560.0,119550.0,0.25379225]
[1755022007289,0.18768932,119560.0,119550.0,0.81826842]
[1755022007290,0.19089932,119560.0,119550.0,0.81826842]
[1755022007677,0.19089932,119560.0,119550.0,0.81617842]
[1755022008753,0.0236193,119560.0,119550.0,0.98347243]
[1755022008977,0.0184493,119560.0,119550.0,0.42108626]
[1755022009244,0.0184493,119560.0,119550.0,0.98556243]
[1755022009720,0.0184493,119560.0,119550.0,0.42108626]
[1755022009958,0.18572932,119560.0,119550.0,0.81186235]
[1755022010376,0.0184493,119560.0,119550.0,0.81186235]
[1755022010728,0.18636314,119560.0,119550.0,0.81186235]
[1755022010937,0.18768932,119560.0,119550.0,0.81186235]
[1755022011097,0.19089932,119560.0,119550.0,0.81186235]
[1755022011306,0.19089932,119560.0,119550.0,0.24738618]
[1755022011504,0.19089932,119560.0,119550.0,0.81186235]
[1755022011993,0.19089932,119560.0,119550.0,0.24738618]
[1755022012197,0.19089932,119560.0,119550.0,0.81186235]
[1755022014769,0.19089932,119560.0,119550.0,0.24738618]
[1755022014989,0.19089932,119560.0,119550.0,0.10664035]